bitfinex/quotes_SOLUSD_20250313
["timestamp","ask_amount","ask_price","bid_price","bid_amount"]
[1741847925245,0.03,124.01,123.98,23.59212481]
[1741847926350,0.03,124.01,123.98,32.33380061]
[1741847926663,0.03,124.01,123.98,24.26800061]
[1741847927257,0.03,124.01,123.97,32.33410061]
[1741847927831,0.03,124.01,123.97,24.26800061]
[1741847928351,0.03,124.01,123.96,32.33480061]
[1741847928554,0.28432314,124.0,123.95,0.0001]
[1741847928750,24.41016218,123.98,123.95,0.0001]
[1741847929263,24.26800061,123.97,123.95,0.0001]
[1741847930053,32.33410061,123.98,123.95,0.0001]
[1741847930440,8.0661,123.98,123.95,0.0001]
[1741847931639,32.33410061,123.98,123.95,0.0001]
[1741847931865,24.26800061,123.97,123.95,0.0001]
[1741847933564,8.0671,123.96,123.95,0.0001]
[1741847934460,32.33470061,123.97,123.95,0.0001]
[1741847934666,32.33390061,123.98,123.95,0.0001]
[1741847935764,8.0659,123.98,123.95,0.0001]
[1741847936665,32.33390061,123.98,123.95,0.0001]
[1741847938167,32.33300061,124.0,123.95,0.0001]
[1741847938352,32.50426218,124.01,123.96,7.28]
[1741847939560,24.26800061,124.0,123.96,7.28]
[1741847940267,24.55232375,123.99,123.96,7.28]
[1741847941470,8.0658,123.98,123.96,7.28]
[1741847942571,24.55232375,123.97,123.95,0.0001]
[1741847943262,24.26800061,123.97,123.95,0.0001]
[1741847943777,8.0671,123.96,123.95,0.0001]
[1741847944267,27.001072,123.96,123.95,0.0001]
[1741847944470,32.33510061,123.96,123.95,0.0001]
[1741847944775,8.0666,123.97,123.95,0.0001]
[1741847945348,32.33460061,123.97,123.95,0.0001]
[1741847946275,8.0666,123.97,123.95,0.0001]
[1741847947270,0.14216157,123.99,123.96,7.28]
[1741847947770,32.36200061,124.01,123.96,7.28]
[1741847947958,32.36200061,124.01,123.96,17.0034]
[1741847948166,32.36200061,124.01,123.96,8.9367]
[1741847948358,0.28432314,124.0,123.96,8.9367]
[1741847948550,15.82216672,124.0,123.96,8.9367]
[1741847949965,15.53784358,123.98,123.96,7.28]
[1741847950160,23.60294358,123.99,123.96,7.28]
[1741847951064,15.53784358,123.98,123.96,7.28]
[1741847951567,0.03,124.01,123.96,22.81784358]
[1741847951749,0.03,124.01,123.99,15.53784358]
[1741847952258,0.03,124.01,123.98,17.08584358]
[1741847952457,0.03,124.01,123.98,1.548]
[1741847952967,0.31432314,124.01,123.98,1.548]
[1741847953856,0.03,124.0,123.98,1.548]
[1741847958860,0.03,124.0,123.96,31.54877168]
[1741847959058,0.03,124.0,123.95,7.7958]
[1741847959059,0.28432314,123.99,123.95,7.7958]
[1741847959374,8.0658,123.98,123.95,15.0758]
[1741847961178,8.0654,123.99,123.95,39.34457168]
[1741847961483,0.28432314,123.99,123.95,39.34457168]
[1741847961685,0.28432314,123.99,123.95,47.41227168]
[1741847961986,0.28432314,123.99,123.95,39.34457168]
[1741847963283,0.28432314,123.99,123.95,47.41227168]
[1741847963869,0.03,124.0,123.96,24.26877168]
[1741847964462,0.03,124.0,123.98,24.26877168]
[1741847964667,0.03,124.0,123.99,31.54877168]
[1741847965980,0.03,124.0,123.99,39.61387168]
[1741847966183,0.03,124.0,123.99,39.59397168]
[1741847967767,0.03,124.0,123.99,7.28]
[1741847968590,0.03,124.0,123.99,31.54877168]
[1741847970665,0.03,124.0,123.99,7.28]
[1741847970869,0.03,124.0,123.98,24.26877168]
[1741847971181,0.03,124.0,123.99,31.54877168]
[1741847971577,0.03,124.0,123.99,39.61387168]
[1741847971779,0.03,124.0,123.99,31.54877168]
[1741847975103,0.03,124.0,123.99,7.28]
[1741847976194,0.03,124.0,123.99,31.54877168]
[1741847976394,0.03,124.0,123.99,22.80882376]
[1741847976982,0.03,124.0,123.99,30.87392376]
[1741847979387,8.0945,124.0,123.96,8.8905]
[1741847980484,0.03,124.0,123.96,33.16673656]
[1741847981691,0.03,124.0,123.97,24.27623656]
[1741847981896,0.03,124.0,123.99,44.27623656]
[1741847983689,0.03,124.0,123.99,62.92588542]
[1741847983888,0.03,124.0,123.99,70.99098542]
[1741847984196,0.03,124.01,124.0,20.25774886]
[1741847984503,0.03,124.01,124.0,44.53398542]
[1741847985402,0.0001,124.01,124.0,447.18280856]
[1741847985697,0.03,124.07,124.05,18.64964886]
[1741847985899,0.03,124.07,124.06,31.55623656]
[1741847986586,0.03,124.07,124.06,133.71441132]
[1741847986790,0.03,124.07,124.06,133.85657289]
[1741847987521,0.03,124.07,124.06,141.91717289]
[1741847988391,0.03,124.08,124.07,18.79181043]
[1741847988599,0.03,124.08,124.07,43.06804699]
[1741847989281,0.03,124.08,124.07,44.27636499]
[1741847989699,0.03,124.08,124.07,52.33626499]
[1741847990806,0.03,124.08,124.07,43.06804699]
[1741847991182,0.03,124.08,124.07,51.12794699]
[1741847991809,0.03,124.08,124.07,42.92588542]
[1741847992312,0.03,124.08,124.07,125.22588542]
[1741847992804,0.03,124.08,124.07,106.57623656]
[1741847992978,0.03,124.08,124.07,113.83623656]
[1741847993383,0.03,124.08,124.07,31.53623656]
[1741847994701,0.03,124.08,124.07,24.27623656]
[1741847995002,0.03,124.08,124.07,31.53623656]
[1741847998908,0.03,124.08,124.07,132.62804699]
[1741847999092,0.03,124.08,124.07,140.68794699]
[1741847999710,0.03,124.08,124.07,121.89613656]
[1741848000413,0.03,124.08,124.07,113.83623656]
[1741848000707,0.03,124.08,124.07,106.57623656]
[1741848000891,0.03,124.08,124.07,113.83623656]
[1741848001801,0.03,124.08,124.07,121.89613656]
[1741848002326,0.03,124.08,124.07,113.83623656]
[1741848004105,0.03,124.08,124.07,31.53623656]
[1741848004407,0.03,124.08,124.07,39.59613656]
[1741848005219,0.03,124.08,124.07,58.24578542]
[1741848009018,0.03,124.08,124.07,58.38794699]
[1741848009395,0.03,124.08,124.07,58.24578542]
[1741848009716,0.03,124.08,124.07,58.38794699]
[1741848009916,0.03,124.08,124.07,140.68794699]
[1741848011119,0.03,124.08,124.07,140.83010856]
[1741848011322,0.03,124.11,124.1,20.0]
[1741848011623,0.03,124.11,124.1,457.22588542]
[1741848011821,0.03,124.11,124.06,0.063]
[1741848012127,25.88113656,124.11,124.09,20.0]
[1741848012309,0.03,124.11,124.09,20.0]
[1741848013302,0.03,124.11,124.1,20.0]
[1741848014023,0.03,124.14,124.13,20.14216157]
[1741848014329,0.03,124.18,124.13,44.27623656]
[1741848015325,0.31432314,124.18,124.13,44.27623656]
[1741848015523,24.5905597,124.18,124.13,20.0]
[1741848015720,24.27623656,124.17,124.11,31.63623656]
[1741848017328,24.5905597,124.18,124.12,24.27623656]
[1741848017539,0.31432314,124.18,124.13,24.27623656]
[1741848018312,43.24020856,124.18,124.12,24.27623656]
[1741848019034,0.31432314,124.18,124.13,24.27623656]
[1741848019210,0.31432314,124.18,124.14,24.27623656]
[1741848019534,0.31432314,124.18,124.14,20.0]
[1741848020229,24.5605597,124.16,124.09,312.0]
[1741848020433,24.27623656,124.14,124.08,24.27623656]
[1741848021215,24.27623656,124.14,124.09,24.27623656]
[1741848021535,0.28432314,124.14,124.09,24.27623656]
[1741848022126,24.27623656,124.14,124.09,24.27623656]
[1741848023932,0.28432314,124.14,124.09,24.27623656]
[1741848024138,0.14216157,124.15,124.1,24.27623656]
[1741848024713,24.41839813,124.15,124.09,32.33473656]
[1741848025040,0.14216157,124.15,124.1,24.27623656]
[1741848025437,24.41839813,124.15,124.09,32.33473656]
[1741848026034,0.14216157,124.15,124.1,24.27623656]
[1741848027144,24.41839813,124.15,124.09,32.33473656]
[1741848027740,32.32993656,124.17,124.11,24.27623656]
[1741848027950,32.32993656,124.17,124.11,31.59623656]
[1741848028118,32.32993656,124.17,124.11,39.65293656]
[1741848028744,24.27623656,124.16,124.11,15.3767]
[1741848029345,32.33033656,124.16,124.11,15.3767]
[1741848029645,24.27623656,124.16,124.11,15.3767]
[1741848030038,24.27623656,124.13,124.06,20.213]
[1741848030245,6.5755,124.14,124.11,20.0]
[1741848030246,30.85173656,124.14,124.11,20.0]
[1741848030443,6.5755,124.14,124.11,20.0]
[1741848030828,30.85173656,124.14,124.11,20.0]
[1741848031026,6.5755,124.14,124.11,20.0]
[1741848031840,6.2014,124.18,124.13,24.27623656]
[1741848032175,6.2014,124.18,124.16,24.27623656]
[1741848032334,0.03,124.18,124.16,31.63623656]
[1741848033443,0.03,124.18,124.16,7.36]
[1741848039930,0.03,124.18,124.16,15.414]
[1741848041452,0.03,124.18,124.17,24.27623656]
[1741848041844,0.03,124.18,124.16,39.69023656]
[1741848042958,0.03,124.18,124.16,8.054]
[1741848043138,0.03,124.18,124.16,7.32]
[1741848045054,0.03,124.18,124.16,15.3741]
[1741848045254,0.03,124.18,124.16,39.65033656]
[1741848045438,0.03,124.18,124.16,15.3741]
[1741848045638,0.03,124.18,124.16,39.65033656]
[1741848046337,0.03,124.18,124.16,15.3741]
[1741848047359,0.03,124.18,124.16,7.32]
[1741848048158,0.03,124.18,124.16,39.65023656]
[1741848048553,0.03,124.18,124.16,15.374]
[1741848050447,0.03,124.18,124.16,7.32]
[1741848051065,0.03,124.18,124.15,32.33063656]
[1741848051250,24.27623656,124.17,124.16,20.0]
[1741848051662,24.30623656,124.18,124.17,20.0]
[1741848053462,0.03,124.18,124.17,20.0]
[1741848066775,0.03,124.18,124.16,7.26]
[1741848067571,0.03,124.18,124.14,0.063]
[1741848067572,0.28432314,124.16,124.14,0.063]
[1741848067771,15.7721516,124.16,124.14,0.063]
[1741848069077,0.03,124.18,124.15,20.0]
[1741848069376,0.03,124.18,124.15,35.48782846]
[1741848069779,0.03,124.18,124.16,7.26]
[1741848072462,0.03,124.18,124.16,15.314]
[1741848072883,0.03,124.18,124.16,7.26]
[1741848074284,0.03,124.18,124.16,39.51192372]
[1741848078089,0.03,124.18,124.16,7.26]
[1741848079961,0.03,124.18,124.16,39.51172372]
[1741848080987,0.03,124.18,124.17,24.19792372]
[1741848081187,0.03,124.18,124.16,39.51172372]
[1741848082492,0.03,124.18,124.17,24.19792372]
[1741848084271,0.03,124.18,124.16,7.26]
[1741848084476,0.03,124.18,124.17,20.0]
[1741848086670,0.03,124.18,124.17,126.49792372]
[1741848086884,0.03,124.18,124.17,153.20097258]
[1741848087267,0.03,124.18,124.17,134.55132372]
[1741848090569,0.03,124.18,124.17,126.49792372]
[1741848091194,0.03,124.18,124.17,134.55132372]
[1741848092093,0.03,124.18,124.17,52.25132372]
[1741848095385,0.03,124.18,124.17,51.45792372]
[1741848096599,0.03,124.18,124.17,27.26]
[1741848099977,0.03,124.18,124.17,51.45792372]
[1741848100189,0.03,124.18,124.17,59.51132372]
[1741848100393,0.03,124.18,124.17,50.79360338]
[1741848100894,17.17430338,124.18,124.14,0.063]
[1741848101472,0.03,124.18,124.16,20.0]
[1741848101869,0.03,124.18,124.17,20.0]
[1741848102673,24.51812799,124.18,124.15,7.26]
[1741848102873,24.23380485,124.18,124.15,7.26]
[1741848103088,0.03,124.18,124.15,7.26]
[1741848105292,0.17216157,124.18,124.15,7.26]
[1741848105495,24.37596642,124.18,124.15,7.26]
[1741848105998,0.17216157,124.18,124.15,7.26]
[1741848106197,24.37596642,124.18,124.15,7.26]
[1741848106405,0.14216157,124.17,124.14,0.063]
[1741848106700,0.31432314,124.18,124.14,24.26680485]
[1741848108199,0.31432314,124.18,124.14,0.063]
[1741848109495,0.03,124.18,124.14,24.26680485]
[1741848109698,0.03,124.18,124.17,20.0]
[1741848111085,0.03,124.18,124.14,8.1177]
[1741848111291,0.03,124.18,124.17,20.0]
[1741848111802,0.03,124.18,124.16,20.0]
[1741848112802,24.23380485,124.18,124.16,20.0]
[1741848113297,24.20380485,124.17,124.14,20.063]
[1741848113700,24.20380485,124.16,124.14,20.063]
[1741848114005,24.48812799,124.17,124.14,20.063]
[1741848114204,24.20380485,124.16,124.14,20.063]
[1741848114507,0.28432314,124.17,124.14,0.063]
[1741848114508,24.20380485,124.15,124.14,0.063]
[1741848114697,51.19247685,124.15,124.14,0.063]
[1741848116498,1.5266,124.16,124.14,0.063]
[1741848117183,6.5642,124.17,124.14,0.063]
[1741848117394,0.17216157,124.18,124.14,31.56680485]
[1741848117588,0.31432314,124.18,124.14,31.56680485]
[1741848119015,0.31432314,124.18,124.14,7.363]
[1741848120511,24.51812799,124.18,124.14,7.363]
[1741848121117,0.31432314,124.18,124.14,7.363]
[1741848122303,0.31432314,124.18,124.14,31.56680485]
[1741848122915,0.03,124.18,124.17,20.0]
[1741848124705,0.03,124.18,124.17,52.25720485]
[1741848125026,0.03,124.18,124.17,28.0534]
[1741848125197,0.03,124.18,124.17,20.0]
[1741848125898,0.03,124.18,124.17,28.0534]
[1741848126629,0.03,124.18,124.17,52.25720485]
[1741848128613,0.03,124.18,124.17,44.20380485]
[1741848128925,0.03,124.18,124.16,24.20380485]
[1741848130409,24.23380485,124.18,124.14,0.063]
[1741848130814,24.23380485,124.18,124.16,20.0]
[1741848131924,0.31432314,124.18,124.16,20.0]
[1741848132425,0.03,124.18,124.17,31.48380485]
[1741848132626,0.03,124.18,124.17,51.48380485]
[1741848132928,0.03,124.18,124.17,31.48380485]
[1741848133129,0.03,124.18,124.17,7.28]
[1741848134033,0.03,124.18,124.17,51.48380485]
[1741848135134,0.03,124.18,124.17,59.53720485]
[1741848135704,0.03,124.18,124.17,39.53720485]
[1741848138222,0.03,124.18,124.17,41.53720485]
[1741848141144,0.0001,124.21,124.2,20.0]
[1741848141307,0.0001,124.21,124.2,24.20380485]
[1741848141511,0.0001,124.21,124.19,24.20380485]
[1741848142050,0.0001,124.21,124.2,20.0]
[1741848144139,0.0001,124.21,124.2,52.25530485]
[1741848144527,0.0001,124.21,124.2,44.20380485]
[1741848144836,0.0001,124.21,124.2,20.0]
[1741848145334,0.0001,124.21,124.2,52.25530485]
[1741848145641,0.0001,124.21,124.2,28.0515]
[1741848147940,0.0001,124.21,124.2,20.0]
[1741848148143,0.0001,124.21,124.2,28.0515]
[1741848148439,0.0001,124.21,124.2,52.25530485]
[1741848152430,0.0001,124.21,124.2,70.90495371]
[1741848154141,0.0001,124.21,124.2,32.25530485]
[1741848154437,0.0001,124.21,124.2,23.52450347]
[1741848157532,0.0001,124.21,124.2,30.78450347]
[1741848159147,0.0001,124.21,124.2,23.52450347]
[1741848160446,0.0001,124.21,124.2,42.17415233]
[1741848162249,0.0001,124.21,124.2,124.47415233]
[1741848165532,0.0001,124.21,124.2,124.53715233]
[1741848168436,0.0001,124.21,124.2,105.88750347]
[1741848169131,0.0001,124.21,124.2,124.53715233]
[1741848170132,0.0001,124.21,124.2,105.88750347]
[1741848173545,0.0001,124.21,124.2,124.53715233]
[1741848174246,0.03,124.3,124.24,20.0]
[1741848174557,0.03,124.3,124.27,15.47300347]
[1741848174774,0.03,124.3,124.26,15.47300347]
[1741848174956,34.43697547,124.3,124.25,7.26]
[1741848175139,34.43697547,124.3,124.25,22.73300347]
[1741848175334,42.48197547,124.3,124.25,22.73300347]
[1741848175756,42.48197547,124.3,124.21,117.94964886]
[1741848175757,15.47300347,124.28,124.23,15.47300347]
[1741848175943,15.47300347,124.27,124.22,22.73300347]
[1741848176255,15.47300347,124.27,124.22,30.78320347]
[1741848176447,15.47300347,124.27,124.22,22.73300347]
[1741848176650,1.5303,124.26,124.22,22.73300347]
[1741848177052,15.75732661,124.25,124.21,20.0]
[1741848177249,6.5429,124.28,124.24,15.47300347]
[1741848178172,6.5429,124.28,124.24,23.52180347]
[1741848178531,6.5429,124.28,124.25,15.47300347]
[1741848179036,1.5303,124.29,124.26,15.47300347]
[1741848180161,1.5303,124.29,124.25,23.52070347]
[1741848180541,9.5763,124.29,124.25,15.47300347]
[1741848180735,1.5303,124.29,124.27,20.0]
[1741848181045,0.03,124.3,124.27,22.73300347]
[1741848181362,0.03,124.3,124.29,20.0]
[1741848181558,0.03,124.3,124.27,7.26]
[1741848183765,0.03,124.3,124.29,20.0]
[1741848184271,0.03,124.3,124.29,28.0456]
[1741848184578,0.31432314,124.3,124.27,7.26]
[1741848185677,15.47300347,124.28,124.22,20.1242]
[1741848185976,9.6789,124.29,124.23,15.47300347]
[1741848186143,0.28432314,124.28,124.24,15.47300347]
[1741848186348,0.28432314,124.28,124.23,15.47300347]
[1741848186565,34.40697547,124.28,124.22,22.75300347]
[1741848187652,0.28432314,124.28,124.23,15.47300347]
[1741848187843,1.6331,124.29,124.26,35.47300347]
[1741848188255,1.6331,124.29,124.26,20.0]
[1741848188769,25.15210347,124.29,124.26,20.0]
[1741848189066,0.17216157,124.3,124.29,20.0]
[1741848189067,0.03,124.3,124.29,20.0]
[1741848190258,0.03,124.3,124.26,113.12040347]
[1741848190573,0.03,124.3,124.26,30.82040347]
[1741848190955,15.50300347,124.3,124.26,7.3]
[1741848191464,0.03,124.3,124.29,20.0]
[1741848194865,0.03,124.3,124.29,28.0456]
[1741848197660,0.03,124.3,124.29,43.51860347]
[1741848197976,0.0001,124.3,124.29,43.51860347]
[1741848199552,0.0001,124.3,124.29,62.16825233]
[1741848199752,0.0001,124.3,124.29,144.46825233]
[1741848201677,0.0101,124.31,124.3,2.0]
[1741848201874,0.0101,124.31,124.3,43.5448139]
[1741848202277,0.03,124.34,124.33,21.6131]
[1741848202577,23.54000347,124.43,124.34,0.14216157]
[1741848202880,23.54000347,124.43,124.38,35.47300347]
[1741848202881,0.28432314,124.42,124.38,35.47300347]
[1741848203272,15.47300347,124.41,124.38,20.0]
[1741848203776,34.40697547,124.41,124.37,20.0]
[1741848204081,15.75732661,124.38,124.35,7.28]
[1741848204266,0.28432314,124.38,124.35,7.28]
[1741848204881,24.12523244,124.37,124.32,244.24523244]
[1741848205065,24.12523244,124.37,124.32,31.40523244]
[1741848205859,8.0405,124.37,124.35,20.0]
[1741848207783,32.16573244,124.37,124.35,20.0]
[1741848208883,8.0405,124.37,124.35,20.0]
[1741848210686,32.16523244,124.38,124.35,20.0]
[1741848211890,24.12523244,124.36,124.32,7.28]
[1741848212573,28.1396,124.38,124.32,31.40523244]
[1741848212574,32.45055558,124.37,124.32,31.40523244]
[1741848212991,32.45055558,124.37,124.32,39.44893244]
[1741848213174,32.45055558,124.37,124.32,31.40523244]
[1741848213375,32.45055558,124.37,124.32,7.28]
[1741848213567,24.12523244,124.36,124.32,7.28]
[1741848213762,24.12523244,124.35,124.33,20.0]
[1741848214171,24.12523244,124.35,124.3,113.68523244]
[1741848214373,24.12523244,124.35,124.3,89.56]
[1741848214888,32.16743244,124.35,124.3,89.56]
[1741848215197,32.16743244,124.35,124.3,82.3]
[1741848215599,32.19673244,124.36,124.3,24.12523244]
[1741848215894,24.40955558,124.35,124.33,20.0]
[1741848216680,0.28432314,124.35,124.33,20.0]
[1741848216887,0.28432314,124.35,124.32,20.0]
[1741848218497,24.40955558,124.35,124.3,32.17003244]
[1741848218701,24.40955558,124.35,124.3,8.0448]
[1741848218702,24.12523244,124.34,124.3,8.0448]
[1741848219199,24.12523244,124.35,124.3,32.17003244]
[1741848220801,24.12523244,124.34,124.32,20.0]
[1741848221303,0.28432314,124.34,124.32,20.0]
[1741848222209,24.40955558,124.34,124.32,20.0]
[1741848222388,32.45205558,124.34,124.32,20.0]
[1741848223196,32.45205558,124.34,124.29,0.063]
[1741848223197,42.7748813,124.33,124.29,0.063]
[1741848223398,24.12523244,124.31,124.29,0.063]
[1741848223905,32.17023244,124.31,124.29,0.063]
[1741848224291,23.50465809,124.31,124.29,20.063]
[1741848224704,0.28432314,124.3,124.29,0.063]
[1741848225406,15.74398123,124.3,124.29,0.063]
[1741848226117,23.78898123,124.3,124.29,0.063]
[1741848226316,32.20676435,124.3,124.29,0.063]
[1741848226513,8.0442,124.32,124.29,20.063]
[1741848226692,40.25756435,124.34,124.29,51.48476435]
[1741848226893,0.28432314,124.33,124.29,51.48476435]
[1741848227216,24.44608749,124.33,124.29,27.323]
[1741848228117,32.48918749,124.33,124.29,27.323]
[1741848228302,24.16176435,124.32,124.29,27.323]
[1741848228819,51.13883635,124.33,124.29,27.323]
[1741848229006,32.48918749,124.33,124.29,27.323]
[1741848229488,24.16176435,124.31,124.29,0.063]
[1741848229688,24.44608749,124.3,124.29,0.063]
[1741848229906,24.16176435,124.31,124.29,0.063]
[1741848230101,32.49108749,124.3,124.29,0.063]
[1741848231216,51.14073635,124.3,124.29,0.063]
[1741848232001,58.75883635,124.3,124.29,0.0001]
[1741848232336,0.14216157,124.28,124.24,0.063]
[1741848232620,24.16176435,124.26,124.24,0.063]
[1741848233024,24.44608749,124.25,124.24,0.063]
[1741848234317,32.49428749,124.25,124.24,0.063]
[1741848234820,51.14393635,124.25,124.24,0.063]
[1741848237517,52.76983635,124.25,124.24,0.063]
[1741848243835,83.3990007,124.25,124.24,0.0001]
[1741848245537,52.76983635,124.25,124.24,0.0001]
[1741848246117,0.28432314,124.25,124.24,0.0001]
[1741848248542,0.14216157,124.26,124.24,0.0001]
[1741848248835,0.14216157,124.25,124.24,0.0001]
[1741848249019,24.44608749,124.25,124.24,0.0001]
[1741848249339,24.16176435,124.25,124.24,0.0001]
[1741848249639,24.44608749,124.25,124.24,0.0001]
[1741848249941,43.09573635,124.25,124.24,0.0001]
[1741848250644,51.14393635,124.25,124.24,0.0001]
[1741848255037,24.16176435,124.25,124.24,0.0001]
[1741848255240,0.14216157,124.26,124.24,0.0001]
[1741848256235,24.30392592,124.26,124.24,0.0001]
[1741848256545,32.35172592,124.26,124.24,0.0001]
[1741848257241,32.35172592,124.26,124.24,20.0001]
[1741848257540,32.35172592,124.26,124.24,0.0001]
[1741848259133,24.44608749,124.25,124.24,0.0001]
[1741848259320,24.16176435,124.27,124.24,0.0001]
[1741848260141,0.14216157,124.27,124.24,0.0001]
[1741848260344,24.16176435,124.28,124.24,0.0001]
[1741848260528,0.28432314,124.29,124.25,24.16176435]
[1741848260845,0.28432314,124.29,124.26,24.16176435]
[1741848261727,0.28432314,124.29,124.25,32.20976435]
[1741848262541,24.16176435,124.31,124.26,24.16176435]
[1741848262933,43.09573635,124.3,124.25,24.16176435]
[1741848263334,43.09573635,124.3,124.25,32.20986435]
[1741848263536,51.14083635,124.3,124.25,32.20986435]
[1741848264038,24.16176435,124.3,124.25,32.20986435]
[1741848264245,0.14216157,124.31,124.26,24.16176435]
[1741848264441,24.30392592,124.31,124.26,24.16176435]
[1741848265032,24.30392592,124.31,124.25,32.20986435]
[1741848265340,24.16176435,124.3,124.25,32.20976435]
[1741848265527,32.20706435,124.3,124.25,32.20976435]
[1741848265937,0.28432314,124.29,124.25,24.16176435]
[1741848266137,24.44608749,124.27,124.24,83.8269]
[1741848266324,24.16176435,124.27,124.24,82.3001]
[1741848266528,0.28432314,124.27,124.24,82.3001]
[1741848267428,24.44608749,124.27,124.24,82.3001]
[1741848267642,32.49358749,124.27,124.24,0.0001]
[1741848269450,24.16176435,124.26,124.24,0.0001]
[1741848269651,32.20976435,124.26,124.24,0.0001]
[1741848270531,24.44608749,124.25,124.24,0.0001]
[1741848272048,51.14393635,124.25,124.24,0.0001]
[1741848273430,24.44608749,124.25,124.24,0.0001]
[1741848273633,0.28432314,124.25,124.24,0.0001]
[1741848274150,8.0456,124.29,124.24,0.0001]
[1741848274350,43.09573635,124.28,124.24,0.0001]
[1741848275752,24.16176435,124.27,124.24,0.0001]
[1741848277649,24.16176435,124.28,124.25,20.0]
[1741848277852,13.5662,124.31,124.26,20.0]
[1741848277853,0.28432314,124.29,124.26,20.0]
[1741848279949,0.31432314,124.34,124.28,44.16176435]
[1741848280152,0.31432314,124.34,124.3,24.16176435]
[1741848280543,0.03,124.34,124.31,24.16176435]
[1741848280736,0.03,124.34,124.33,8.0431]
[1741848280939,0.03,124.34,124.32,24.16176435]
[1741848281236,0.03,124.34,124.32,32.20526435]
[1741848281748,0.03,124.34,124.33,24.16176435]
[1741848283236,0.03,124.34,124.33,106.46176435]
[1741848283846,0.03,124.34,124.33,82.3]
[1741848285250,0.03,124.34,124.32,7.26]
[1741848285929,0.03,124.34,124.3,24.16176435]
[1741848286351,0.03,124.34,124.31,24.16176435]
[1741848287135,0.03,124.34,124.3,24.16176435]
[1741848287939,0.31432314,124.34,124.3,24.16176435]
[1741848288338,24.33392592,124.34,124.29,31.42176435]
[1741848289051,8.0724,124.34,124.3,24.16176435]
[1741848289258,32.23416435,124.34,124.29,24.16176435]
[1741848289660,32.23416435,124.34,124.27,220.9869]
[1741848289661,24.16176435,124.32,124.27,212.94]
[1741848289850,24.16176435,124.31,124.27,212.94]
[1741848290042,24.30392592,124.3,124.25,39.27456435]
[1741848290355,24.16176435,124.29,124.25,15.1128]
[1741848290860,24.16176435,124.29,124.25,13.5177]
[1741848291237,32.20806435,124.28,124.24,0.0001]
[1741848291445,24.16176435,124.27,124.24,0.0001]
[1741848291657,24.16176435,124.26,124.24,0.0001]
[1741848291961,24.16176435,124.26,124.24,20.0001]
[1741848292346,24.16176435,124.26,124.24,0.0001]
[1741848292543,24.44608749,124.27,124.24,20.0001]
[1741848293455,32.49308749,124.27,124.24,20.0001]
[1741848294055,24.44608749,124.27,124.24,20.0001]
[1741848295066,24.44608749,124.27,124.24,0.0001]
[1741848295067,24.16176435,124.26,124.24,0.0001]
[1741848295261,24.16176435,124.26,124.24,20.0001]
[1741848295439,0.14216157,124.27,124.24,20.0001]
[1741848295644,0.28432314,124.27,124.24,0.0001]
[1741848295975,24.44608749,124.27,124.24,0.0001]
[1741848296264,0.28432314,124.27,124.24,0.0001]
[1741848299342,24.16176435,124.29,124.24,0.0001]
[1741848299542,24.16176435,124.32,124.27,24.16176435]
[1741848299767,32.48938749,124.33,124.27,24.16176435]
[1741848299961,0.28432314,124.3,124.26,24.16176435]
[1741848300563,43.09573635,124.33,124.27,24.16176435]
[1741848300873,0.03,124.34,124.32,44.16176435]
[1741848301073,0.03,124.34,124.33,49.29041321]
[1741848301455,0.03,124.34,124.33,30.64076435]
[1741848301657,0.03,124.34,124.33,38.68386435]
[1741848302350,0.03,124.34,124.32,128.16780808]
[1741848302548,0.03,124.34,124.3,38.60780808]
[1741848303281,0.03,124.34,124.31,38.60780808]
[1741848303474,0.03,124.34,124.29,52.44710808]
[1741848303475,18.963972,124.34,124.29,52.44710808]